Cogmind - Beta 15 @@@ ROGUE MODE // 2025.10.09 @ 01:33:47 Player: ElandEm Result: Destroyed by B-75 Beast with Magnetic Acceleration Cannon Performance ------------- Evolutions (1) 500 Regions Visited (5) 1000 Robots Destroyed (26) 130 Value Destroyed (451) 451 Prototype IDs (2) 40 Alien Tech Used (0) 0 Bonus (680) 680 TOTAL SCORE: 2801 Bonus ------- Follower Combat Kills 80 Met Imprinter 300 Was Imprinted 300 Cogmind --------- Core Integrity 0/400 Matter 300/300 Energy 290/290 System Corruption 3% Temperature Cool (74) Movement Treading (165) Location -6/Proximity Caves Parts ------- > --- POWER (2) -------- Improved Deuterium Engine > --- PROPULSION (2) --- Armored Treads Medium Treads > --- UTILITY (2) ------ (None) > --- WEAPON (3) ------- Medium Laser Small Laser > --- INVENTORY (5) ---- Authchip [Propulsion] Authchip [Device] Authchip [Weapon] Peak State ------------ > --- POWER ------------ Light Ion Engine Improved Deuterium Engine > --- PROPULSION ------- Flight Unit Flight Unit > --- UTILITY ---------- Experimental Hacking Suite Mobile Refinery Mk. CCLXVII > --- WEAPON ----------- Medium Laser Small Laser > --- INVENTORY -------- VTOL Module Authchip [Propulsion] Authchip [Device] Authchip [Weapon] Grenade Launcher [Rating: 24] Favorites ----------- Power Light Ion Engine Engine Light Ion Engine Propulsion Flight Unit Treads Armored Treads Leg Aluminum Leg Wheel Wheel Hover Unit Hover Unit Flight Unit Flight Unit Utility Mobile Refinery Mk. CCLXVII Device Mobile Refinery Mk. CCLXVII Storage Medium Storage Unit Processor Signal Interpreter Hackware Experimental Hacking Suite Protection Backup Plating I Weapon Small Laser Energy Gun Small Laser Energy Cannon Beam Cannon Ballistic Gun Assault Rifle Launcher Grenade Launcher Build | -11 -10 -9 -9 -7 -6 ------- Run | Yrd Mat Mat Min Zio Pro Slots Evolved 2 | . . 2 . . . Power 1 | . . 1 . . . Propulsion . | . . . . . . Utility . | . . . . . . Weapon 1 | . . 1 . . . Parts Attached 31 | 7 8 7 3 2 4 Power 5 | 1 1 1 1 . 1 Engine 5 | 1 1 1 1 . 1 Core . | . . . . . . Reactor . | . . . . . . Propulsion 13 | 4 3 1 2 . 3 Treads 2 | . . . . . 2 Leg 2 | 2 . . . . . Wheel 4 | 2 1 1 . . . Hover 2 | . 2 . . . . Flight 3 | . . . 2 . 1 Utility 6 | . 2 2 . 2 . Device 2 | . . 1 . 1 . Storage 1 | . 1 . . . . Processor 1 | . 1 . . . . Hackware 1 | . . . . 1 . Protection 1 | . . 1 . . . Artifact . | . . . . . . Weapon 7 | 2 2 3 . . . Energy Gun 3 | 2 . 1 . . . Energy Cannon 2 | . . 2 . . . Ballistic Gun 1 | . 1 . . . . Ballistic Cannon . | . . . . . . Launcher 1 | . 1 . . . . Special Weapon . | . . . . . . Impact Weapon . | . . . . . . Slashing Weapon . | . . . . . . Piercing Weapon . | . . . . . . Special Melee Weapon . | . . . . . . Unidentified Prototypes 2 | . . . . 2 . Corrupted Parts 1 | . . . . . 1 System Corruption 3 | . . . . . 3 Parts Lost 8 | . 1 3 . . 4 Power 3 | . . 2 . . 1 Propulsion 1 | . . 1 . . . Utility 1 | . . . . . 1 Weapon 3 | . 1 . . . 2 Highest Loss Streak 3 | . 1 3 . . 1 To Critical Strikes . | . . . . . . Average Backups 3 | 2 5 6 4 3 4 Power . | . 1 . . . . Propulsion . | 1 1 3 2 . . Utility 1 | . . . 1 2 3 Weapon 1 | . 2 2 1 1 . Tool/Special . | . . . . . . Unused Backups 6 | . 2 . . 1 3 Power 1 | . 1 . . . . Propulsion . | . . . . . . Utility 4 | . . . . 1 3 Weapon 1 | . 1 . . . . Tool/Special . | . . . . . . Average Slot Usage (%) 90 | . 89 89 92 100 78 Engine 19 | . 14 13 14 22 18 Treads 1 | . . . . . 4 Wheel 2 | . 24 5 17 . . Hover 1 | . 3 15 . . . Flight 16 | . . . 4 22 17 Device 7 | . . . 11 11 5 Storage 1 | . 5 10 . . . Processor 1 | . 12 8 . . . Hackware 5 | . . . . 7 4 Protection 2 | . . 2 11 3 . Energy Gun 19 | . 11 5 18 22 21 Energy Cannon 7 | . . 15 11 11 2 Launcher 2 | . 10 8 3 . 3 Peak Build Rating 24 | 5 8 9 9 22 24 Average Rating 15 | 2 6 8 8 17 16 On Entrance 8 | . 5 7 8 9 22 Naked Turns . | . . . . . . Heaviest Build 27 | 7 20 27 14 17 21 Greatest Support 48 | 20 26 20 20 8 48 Greatest Overweight (x) 2 | . 1 2 1 2 2 Average Overweight (x) 1 | . . . . 1 1 Largest Inventory Capacity 10 | 5 10 10 5 5 5 Average Capacity 5 | 5 6 9 5 5 5 Most Carried 10 | 5 10 8 5 5 5 Average Carried 3 | 2 5 6 3 3 4 Final Capacity 10 | 5 10 5 5 5 5 Final Carried 9 | 5 9 4 2 4 3 Class Distribution -------------------- 50% | Scavenger-Gunner 15% | Scavenger-Tank 15% | Scavenger-Mutant 8% | Bomber 6% | Mutant Dominant Class ---------------- Mutant | -10/Materials Bomber | -9/Materials Scavenger-Bomber | -9/Mines Scavenger-Gunner | -7/Zion Scavenger-Gunner | -6/Proximity Caves Resources | -11 -10 -9 -9 -7 -6 ----------- Run | Yrd Mat Mat Min Zio Pro Matter Collected 958 | 290 138 308 63 84 75 Remotely 224 | . . 161 63 . . Salvage Created 633 | 44 103 331 155 . . Parts 49 | 4 7 23 15 . . Haulers Intercepted 1 | . 1 . . . . Recyclers Shooed . | . . . . . . Parts Field Recycled . | . . . . . . Retrieved Matter . | . . . . . . Parts Self-Destructed 4 | . . . . . 4 Prevented 3 | . . . . . 3 Kills | -11 -10 -9 -9 -7 -6 ------- Run | Yrd Mat Mat Min Zio Pro Combat Hostiles Destroyed 18 | 1 5 4 8 . . Guns 5 | 1 2 . 2 . . Cannons 5 | . . 3 2 . . AOE 8 | . 3 1 4 . . Classes Destroyed 7 | 1 3 3 . . . Builder 3 | . . 2 1 . . Hauler 1 | . 1 . . . . Recycler 3 | . . 2 1 . . Watcher 1 | . 1 . . . . Swarmer 11 | . 3 . 8 . . Grunt 5 | 1 2 2 . . . Sentry 2 | . . 2 . . . Best Kill Streak 10 | 1 5 4 10 . . Combat Bots Only 4 | 1 3 3 4 . . Max Kills in Single Turn 3 | 1 2 3 3 . . Gunslinging . | . . . . . . Exploded 2 | . 1 1 2 . . Melee . | . . . . . . Uniques/NPCs Destroyed . | . . . . . . Combat | -11 -10 -9 -9 -7 -6 -------- Run | Yrd Mat Mat Min Zio Pro Hostile Shots Fired 98 | 3 15 31 10 . 39 Missed 18 | . 3 3 3 . 9 Hits 80 | 3 12 28 7 . 30 Projectile 80 | 3 12 28 7 . 30 Critical Strikes 2 | . . 2 . . . Damage Taken 1194 | 34 114 591 55 . 400 Core 459 | 10 27 220 7 . 195 Absorbed by Shields . | . . . . . . Regen/Repaired (Parts) 27 | . . 27 . . . Core Remaining (%) 90 | 96 85 . . . . Volleys Fired 45 | 3 15 16 7 . 4 Largest 3 | 2 2 3 3 . 2 Hottest 150 | 90 80 140 150 . 90 Shots Fired 108 | 6 29 45 21 . 7 Gun 58 | 6 19 16 11 . 6 Cannon 31 | . . 24 6 . 1 Launcher 19 | . 10 5 4 . . Special . | . . . . . . Kinetic 15 | . 7 8 . . . Thermal 64 | 3 5 32 17 . 7 Explosive 19 | . 10 5 4 . . Electromagnetic 10 | 3 7 . . . . Robot Hit Streak 7 | 5 7 4 6 . 3 Robot Miss Streak 4 | . 2 4 1 . . Penetration Max . | . . . . . . Secondary Targets . | . . . . . . Shots Hit Robots 58 | 5 19 22 11 . 1 Core Hits 34 | 2 11 11 10 . . Critical Kills . | . . . . . . Critical Parts Destroyed . | . . . . . . Critical Strikes 1 | . 1 . . . . Burn 1 | . 1 . . . . Melee Attacks . | . . . . . . Impact . | . . . . . . Slashing . | . . . . . . Piercing . | . . . . . . Sneak Attacks . | . . . . . . Combat Hostiles . | . . . . . . Follow-up Attacks . | . . . . . . Damage Inflicted 1631 | 68 672 482 391 . 18 Guns 381 | 68 143 86 84 . . Cannons 295 | . . 209 68 . 18 Explosions 955 | . 529 187 239 . . Melee . | . . . . . . Ramming . | . . . . . . Kinetic 111 | . 60 51 . . . Thermal 478 | 25 39 244 152 . 18 Explosive 955 | . 529 187 239 . . Electromagnetic 87 | 43 44 . . . . Impact . | . . . . . . Slashing . | . . . . . . Piercing . | . . . . . . Highest Corruption 3 | . . . . . 3 Average Corruption 3 | . . . . . 3 Corruption Purged . | . . . . . . Corruption Blocked . | . . . . . . Effects 7 | . . . . . 7 Message Errors 3 | . . . . . 3 Matter Fused 1 | . . . . . 1 Energy Discharges 1 | . . . . . 1 Data Loss (minor) 1 | . . . . . 1 Alerts 1 | . . . . . 1 Overload Shots . | . . . . . . Overflow Damage 73 | . 21 37 15 . . Projectiles 4 | . . 4 . . . Explosions 69 | . 21 33 15 . . Melee . | . . . . . . Knockbacks . | . . . . . . Impact . | . . . . . . Kinetic . | . . . . . . Secondary . | . . . . . . Self-Inflicted Damage 50 | . . 50 . . . Shots 2 | . . 2 . . . Rammed . | . . . . . . Targets Rammed . | . . . . . . Kicked . | . . . . . . Crushed . | . . . . . . Highest Temperature 644 | 66 77 644 168 . 81 Average Temperature 162 | 29 40 283 79 . 40 Received Heat Transfer 285 | 18 36 183 . . 48 Effects 21 | . . 21 . . . Shutdowns 4 | . . 4 . . . Energy Bleed 2 | . . 2 . . . Interference 3 | . . 3 . . . Matter Decay 2 | . . 2 . . . Short Circuit 2 | . . 2 . . . Damage (minor) 1 | . . 1 . . . Damage (major) 4 | . . 4 . . . Damage (core) 3 | . . 3 . . . Siege Activations . | . . . . . . Martial Activations . | . . . . . . Shielding Activations . | . . . . . . Robots Disrupted . | . . . . . . Combat Hostiles . | . . . . . . Robots Corrupted . | . . . . . . Combat Hostiles . | . . . . . . Parts Fried . | . . . . . . Impact Corruptions . | . . . . . . Robots Melted . | . . . . . . Combat Hostiles . | . . . . . . Parts Melted 2 | . . 1 1 . . Heat Transferred 1174 | 74 185 519 359 . 37 Parts Sabotaged . | . . . . . . Parts Stolen . | . . . . . . Parts Stripped . | . . . . . . Power Chain Reactions . | . . . . . . Alert | -11 -10 -9 -9 -7 -6 ------- Run | Yrd Mat Mat Min Zio Pro Maximum Alert Level 1 | . . . 1 . . Low Security (%) 93 | 100 100 100 54 . . Level 1 6 | . . . 45 . . Level 2 . | . . . . . . Level 3 . | . . . . . . Level 4 . | . . . . . . Level 5 . | . . . . . . High Security . | . . . . . . Max Security . | . . . . . . Peak Influence 238 | 20 178 132 238 . . Initial 66 | . 6 66 47 . . Average 75 | 2 69 73 182 . . Influence Increases 789 | 20 235 176 211 . 147 Destroy 0b10 Robot/C 440 | 20 100 80 160 . 80 Destroy 0b10 Robot/NC 40 | . 10 20 10 . . Destroy Leader 84 | . 24 30 20 . 10 Allied During Kill 27 | . . . . . 27 Successful Hack 10 | . 7 3 . . . Disable Machine 45 | . 30 15 . . . Destroy Structure 98 | . 49 28 21 . . Partial Spotted 15 | . 15 . . . . Lose Combat Pursuer 30 | . . . . . 30 Influence Decreases 789 | 10 87 212 115 218 147 Entered New Map 389 | . 4 92 75 218 . Time Decay 313 | 10 73 90 40 . 100 Lost Part 50 | . 10 30 . . 10 Lost Ally 37 | . . . . . 37 Squads Dispatched 2 | . 1 1 . . . Investigation 1 | . . 1 . . . Extermination . | . . . . . . Reinforcement 1 | . 1 . . . . Assault . | . . . . . . Garrison . | . . . . . . Intercept . | . . . . . . Searches Triggered . | . . . . . . Construction Impeded . | . . . . . . Haulers Reinforced . | . . . . . . Active Scanning Responses . | . . . . . . Cargo Convoy Interrupts . | . . . . . . Stealth | -11 -10 -9 -9 -7 -6 --------- Run | Yrd Mat Mat Min Zio Pro Distress Signals . | . . . . . . Communications Jammed . | . . . . . . Distress Signals . | . . . . . . Times Spotted 24 | 1 7 4 5 . 7 Peak Tracking Total 4 | 1 4 4 4 . 4 Tactical Retreats 2 | . . . . . 2 Traps | -11 -10 -9 -9 -7 -6 ------- Run | Yrd Mat Mat Min Zio Pro Traps Triggered . | . . . . . . Indirectly . | . . . . . . Trap Hack Attempts . | . . . . . . Triggered . | . . . . . . Disarmed . | . . . . . . Reprogrammed . | . . . . . . Reused . | . . . . . . Traps Extracted . | . . . . . . Installed . | . . . . . . Triggered . | . . . . . . Machines | -11 -10 -9 -9 -7 -6 ---------- Run | Yrd Mat Mat Min Zio Pro Machines Disabled 3 | . 2 1 . . . Max in Single Turn 1 | . 1 1 . . . Machines Repaired . | . . . . . . Machines Dismantled . | . . . . . . Machines Sabotaged . | . . . . . . Overloaded Fab Kills . | . . . . . . Hacking | -11 -10 -9 -9 -7 -6 --------- Run | Yrd Mat Mat Min Zio Pro Machines Accessed 2 | . 1 1 . . . Terminals 1 | . 1 . . . . Fabricators . | . . . . . . Repair Stations 1 | . . 1 . . . Recycling Units . | . . . . . . Scanalyzers . | . . . . . . Garrison Access . | . . . . . . Total Hacks 10 | . 5 5 . . . Successful 8 | . 4 4 . . . Failed 2 | . 1 1 . . . Catastrophic . | . . . . . . Database Lockouts . | . . . . . . Manual . | . . . . . . Terminals 5 | . 5 . . . . Fabricators . | . . . . . . Repair Stations 5 | . . 5 . . . Recycling Units . | . . . . . . Scanalyzers . | . . . . . . Garrison Access . | . . . . . . Terminal Hacks 4 | . 4 . . . . Record 2 | . 2 . . . . Dispatch Records 1 | . 1 . . . . Zone Layout 1 | . 1 . . . . Fabricator Hacks . | . . . . . . Repair Station Hacks 4 | . . 4 . . . Scan Component 2 | . . 2 . . . Repair 2 | . . 2 . . . Recycling Unit Hacks . | . . . . . . Scanalyzer . | . . . . . . Garrison Access Hacks . | . . . . . . Unauthorized Hacks . | . . . . . . Terminals . | . . . . . . Fabricators . | . . . . . . Repair Stations . | . . . . . . Recycling Units . | . . . . . . Scanalyzers . | . . . . . . Garrison Access . | . . . . . . Data Cores Recovered . | . . . . . . Used . | . . . . . . Hacking Detections 2 | . 1 1 . . . Full Trace Events 1 | . . 1 . . . Feedback Events . | . . . . . . Feedback Blocked . | . . . . . . Robot Schematics Acquired . | . . . . . . Robots Built . | . . . . . . Authchips . | . . . . . . Time . | . . . . . . Total Robot Build Rating . | . . . . . . Part Schematics Acquired 2 | . . . . 2 . Parts Built . | . . . . . . Authchips . | . . . . . . Time . | . . . . . . Total Part Build Rating . | . . . . . . Parts Repaired 2 | . . 2 . . . Time 52 | . . 52 . . . Parts Recycled . | . . . . . . Recycled Matter . | . . . . . . Retrieved Matter . | . . . . . . Retrieved Components . | . . . . . . Parts Scanalyzed . | . . . . . . Part Schematics Acquired . | . . . . . . Parts Damaged . | . . . . . . Bothacking | -11 -10 -9 -9 -7 -6 ------------ Run | Yrd Mat Mat Min Zio Pro Used RIF Installer . | . . . . . . Robots Hacked . | . . . . . . Non-combat . | . . . . . . Combat . | . . . . . . Robot Hacks Applied . | . . . . . . Relay Couplers Released . | . . . . . . Fabnet Peak Effective % . | . . . . . . Robots Rewired . | . . . . . . Allies Hacked . | . . . . . . Hacks Repelled . | . . . . . . Allies | -11 -10 -9 -9 -7 -6 -------- Run | Yrd Mat Mat Min Zio Pro Total Allies 4 | . . . . 4 . Largest Group 4 | . . . . 4 4 Highest-Rated Group 158 | . . . . 158 158 Highest-Rated Ally 42 | . . . . 42 42 Total Orders . | . . . . . . Ally Attacks 20 | . . . . . 20 Total Damage 222 | . . . . . 222 Kills 4 | . . . . . 4 Allies Corrupted . | . . . . . . Allies Melted . | . . . . . . Intel | -11 -10 -9 -9 -7 -6 ------- Run | Yrd Mat Mat Min Zio Pro Active Infowar (turns) . | . . . . . . Robot Analysis Total . | . . . . . . Derelict Logs Recovered 1 | . . . . 1 . Drone Launches . | . . . . . . Drone Recoveries . | . . . . . . Exploration | -11 -10 -9 -9 -7 -6 ------------- Run | Yrd Mat Mat Min Zio Pro Turns Passed 2655 | 105 171 192 84 1213 890 Spaces Moved 1596 | 107 112 74 55 710 538 Core 32 | 32 . . . . . Treads 105 | . . . . . 105 Legs . | . . . . . . Wheels 254 | 75 95 40 44 . . Hover 51 | . 17 34 . . . Flight 1154 | . . . 11 710 433 Fastest Speed 50 | 50 80 80 80 117 114 Average Speed 143 | 71 90 113 87 159 156 Slowest Speed 197 | 80 116 180 117 197 197 Overloaded Moves . | . . . . . . Propulsion Burnouts . | . . . . . . Robots Hopped . | . . . . . . Potential Cave-ins . | . . . . . . Cave-ins Triggered . | . . . . . . Exploration Rate (%) 31 | 8 30 7 14 82 47 Regions Visited 5 Branch Regions 3 Pre-discovered Areas 4 | . . . . 4 . Known Exits Taken 1 | . 1 . . . . Unknown Exits Taken 4 | 1 . 1 1 1 . Scrap Searched . | . . . . . . Spaces Dug 7 | . . . 7 . . Terrain Destroyed 108 | . 46 32 30 . . Melee . | . . . . . . Projectile . | . . . . . . AOE 108 | . 46 32 30 . . Terrain Rammed . | . . . . . . Walls Destroyed . | . . . . . . Machines Disabled . | . . . . . . Actions | -11 -10 -9 -9 -7 -6 --------- Run | Yrd Mat Mat Min Zio Pro Total 1871 | 126 151 145 76 794 579 Wait 122 | . . 28 1 72 21 Move 1591 | 106 111 73 54 709 538 Hop . | . . . . . . Pick Up 39 | 8 11 7 3 6 4 Fast Attach 3 | 2 . . . . 1 Attach 19 | 3 3 6 2 2 3 Detach 1 | . . . 1 . . Swap 28 | 4 7 9 4 1 3 Drop 23 | . 4 6 4 4 5 Fire 45 | 3 15 16 7 . 4 Melee . | . . . . . . Ram . | . . . . . . Kick . | . . . . . . Crush . | . . . . . . Escape Stasis . | . . . . . . Rewire . | . . . . . . Trap . | . . . . . . Miscellaneous . | . . . . . . Route ------- -11/Scrapyard -10/Materials (discovered 3 exits: *Mat / *Min x2) -9/Materials -9/Mines (discovered 2 exits: [*Mat] / [*Zio]) -7/Zion (discovered 2 exits: Dee / [*Pro]) -6/Proximity Caves History --------- Turn | Location | Event 2 | -11/Scrapyard | Met Revision 17 48 | -11/Scrapyard | Discovered new exit (range 8) 106 | -11/Scrapyard | Entered Materials 176 | -10/Materials | Discovered new exit (range 12) 244 | -10/Materials | Discovered new exit (range 15) 265 | -10/Materials | Discovered new exit (range 10) 268 | -10/Materials | Identified exit to Mines 276 | -10/Materials | Identified exit to Materials 277 | -10/Materials | Entered another Materials area 277 | -9/Materials | Evolved 2 slots: Power x1, Weapon x1 332 | -9/Materials | Repaired Flight Unit 358 | -9/Materials | Repaired Grenade Launcher 373 | -9/Materials | Core integrity fell below 50% 433 | -9/Materials | Lost 3 parts (2p1n) 467 | -9/Materials | Discovered new exit (range 3) 469 | -9/Materials | Entered Mines 509 | -9/Mines | Discovered new exit (range 8) 528 | -9/Mines | A Derelict revealed a hidden shortcut to a safe place 553 | -9/Mines | Entered Zion 786 | -7/Zion | Build established: Scavenger-Tank 802 | -7/Zion | Identified exit to Deep Caves 839 | -7/Zion | Learned location of Warlord (-4) 899 | -7/Zion | Found Prototype Hackware 904 | -7/Zion | Identified Exp. Hacking Suite 950 | -7/Zion | Found Prototype Device 951 | -7/Zion | Identified Mobile Refinery Mk. CCLXVII 1042 | -7/Zion | Met Imprinter 1171 | -7/Zion | Imprinted 1173 | -7/Zion | Declared Zion's savior 1200 | -7/Zion | Build established: Scavenger-Gunner 1464 | -7/Zion | Given A8's code to call for help 1663 | -7/Zion | Discovered new exit (range 13) 1766 | -7/Zion | Entered Proximity Caves 1766 | -6/Proximity Caves | Accompanied by 4 allies 2087 | -6/Proximity Caves | Spotted B-75 Beast 2280 | -6/Proximity Caves | Core integrity fell below 20% 2656 | -6/Proximity Caves | Destroyed by B-75 Beast with Magnetic Acceleration Cannon Last Messages --------------- Dropped Flight Unit. Acquired Med. Treads. 6DJ0W=FBRIFPH#=DLLTJT5NRTYFDD1 VO FF 1 Acquired 35 matter. Grenade Launcher destroyed. Lgt. Ion Engine destroyed. GKQQA,